bitfinex-derivatives/quotes_SOLF0:USTF0_20260306
["timestamp","ask_amount","ask_price","bid_price","bid_amount"]
[1772828182815,9.67835664,85.065,85.02,3.62991174]
[1772828183021,3.81448412,85.063,85.02,10.586]
[1772828183221,3.81448412,85.061,85.02,10.586]
[1772828183416,3.81448412,85.059,85.02,10.586]
[1772828183615,9.67835664,85.058,85.02,10.586]
[1772828183921,9.67835664,85.057,85.02,10.586]
[1772828184119,3.81448412,85.059,85.02,10.586]
[1772828184120,9.67835664,85.056,85.02,10.586]
[1772828184321,9.67835664,85.055,85.02,10.586]
[1772828184616,3.81448412,85.059,85.006,3.62991174]
[1772828184617,9.67835664,85.054,85.012,10.587]
[1772828184821,3.81448412,85.059,85.013,3.62991174]
[1772828185013,3.81448412,85.073,85.027,10.585]
[1772828185217,3.81448412,85.073,84.978,21.182]
[1772828185218,9.66933671,85.072,85.028,3.62991174]
[1772828185423,9.66933671,85.071,85.028,3.62991174]
[1772828185624,9.66933671,85.07,85.028,3.62991174]
[1772828185921,9.66933671,85.069,85.028,3.62991174]
[1772828186124,9.66933671,85.068,85.028,3.62991174]
[1772828186316,9.6669794,85.067,85.028,3.62991174]
[1772828186515,3.81448412,85.065,85.013,3.62991174]
[1772828186721,21.66260883,85.107,85.013,3.62991174]
[1772828186722,3.81448412,85.063,85.013,3.62991174]
[1772828186921,3.81448412,85.058,85.013,3.62991174]
[1772828187124,9.66622241,85.057,85.013,3.62991174]
[1772828187420,3.81448412,85.074,85.023,3.62991174]
[1772828187625,10.85578606,85.09,85.023,3.62991174]
[1772828187626,3.81448412,85.072,85.023,3.62991174]
[1772828187822,3.81448412,85.07,85.023,3.62991174]
[1772828188028,21.66260883,85.106,85.023,3.62991174]
[1772828188029,3.81448412,85.068,85.023,3.62991174]
[1772828188227,10.58,85.066,85.023,3.62991174]
[1772828188424,3.81448412,85.064,85.01,3.62991174]
[1772828188630,3.81448412,85.062,85.01,3.62991174]
[1772828188833,3.81448412,85.06,85.01,3.62991174]
[1772828189030,3.81448412,85.058,85.01,3.62991174]
[1772828189235,3.81448412,85.056,85.01,3.62991174]
[1772828189430,10.582,85.053,85.01,3.62991174]
[1772828189631,3.81448412,85.051,85.01,3.62991174]
[1772828192339,3.96621749,85.066,85.012,3.93733117]
[1772828192539,3.96621749,85.064,85.012,3.93733117]
[1772828192739,3.96621749,85.062,85.012,3.93733117]
[1772828192940,3.96621749,85.059,85.012,3.93733117]
[1772828193234,3.96621749,85.057,85.012,3.93733117]
[1772828193441,3.96621749,85.055,85.012,3.93733117]
[1772828193739,9.66822673,85.054,85.012,3.93733117]
[1772828193940,9.66822673,85.053,85.012,3.93733117]
[1772828194140,14.54621749,85.068,85.015,3.93733117]
[1772828194435,13.63806344,85.067,85.015,3.93733117]
[1772828194739,9.67184595,85.066,85.015,3.93733117]
[1772828194936,9.67184595,85.065,85.015,3.93733117]
[1772828195238,9.67184595,85.064,85.017,3.93733117]
[1772828195438,9.67184595,85.063,85.017,3.93733117]
[1772828195741,9.67184595,85.062,85.017,3.93733117]
[1772828195939,9.67184595,85.061,85.017,3.93733117]
[1772828196139,9.67184595,85.06,85.017,3.93733117]
[1772828196438,9.67509748,85.059,85.017,3.93733117]
[1772828196632,3.96621749,85.057,84.997,3.93733117]
[1772828196829,3.96621749,85.055,84.997,3.93733117]
[1772828197041,9.67509748,85.054,84.997,3.93733117]
[1772828197338,3.96621749,85.051,84.997,3.93733117]
[1772828197540,3.96621749,85.049,84.997,3.93733117]
[1772828197737,3.96621749,85.047,84.997,3.93733117]
[1772828197935,3.96621749,85.045,84.997,3.93733117]
[1772828198138,3.96621749,85.043,84.997,3.93733117]
[1772828198339,3.96621749,85.041,84.997,3.93733117]
[1772828198540,13.64131497,85.04,84.997,3.93733117]
[1772828198738,9.67509748,85.039,84.997,3.93733117]
[1772828198938,9.67509748,85.038,84.997,3.93733117]
[1772828199138,9.67509748,85.037,84.997,3.93733117]
[1772828199342,9.68057702,85.036,84.997,3.93733117]
[1772828199538,3.96621749,85.04,84.997,3.93733117]
[1772828199738,9.68057702,85.039,84.997,3.93733117]
[1772828199935,9.68057702,85.038,84.997,3.93733117]
[1772828200141,3.96621749,85.053,84.998,3.93733117]
[1772828200339,9.68285022,85.052,84.998,3.93733117]
[1772828200542,9.68285022,85.051,84.998,3.93733117]
[1772828200737,3.96621749,85.049,85.008,3.93733117]
[1772828200939,9.68285022,85.048,85.008,3.93733117]
[1772828201141,9.68285022,85.047,85.008,3.93733117]
[1772828201443,9.68285022,85.046,85.008,3.93733117]
[1772828201646,3.96621749,85.044,84.999,3.93733117]
[1772828201947,21.66260883,85.079,84.999,3.93733117]
[1772828201948,3.96621749,85.042,84.999,3.93733117]
[1772828202142,9.68285022,85.041,85.001,10.588]
[1772828202341,9.68285022,85.04,85.002,3.93733117]
[1772828202544,3.96621749,85.061,85.002,3.93733117]
[1772828202545,9.68285022,85.039,85.002,3.93733117]
[1772828202745,9.68285022,85.038,85.002,3.93733117]
[1772828202946,9.68285022,85.037,85.002,3.93733117]
[1772828203141,3.96621749,85.049,85.003,10.588]
[1772828203347,9.68725867,85.048,85.004,3.93733117]
[1772828203646,9.68725867,85.047,85.004,3.93733117]
[1772828203836,9.68725867,85.046,85.004,3.93733117]
[1772828204036,9.68725867,85.045,85.004,3.93733117]
[1772828204341,9.68725867,85.044,85.004,3.93733117]
[1772828204541,9.68725867,85.043,85.004,3.93733117]
[1772828204741,9.68725867,85.042,85.008,10.587]
[1772828204941,9.68725867,85.041,85.008,10.587]
[1772828205143,9.68725867,85.04,85.004,3.93733117]
[1772828205343,9.68725867,85.039,85.004,3.93733117]
[1772828205542,9.68725867,85.038,85.004,3.93733117]
[1772828205742,3.96621749,85.049,85.004,3.93733117]
[1772828205943,14.54821749,85.047,85.004,3.93733117]
[1772828206143,13.65508922,85.046,85.004,3.93733117]
[1772828206444,9.68887173,85.045,85.004,3.93733117]
[1772828206642,9.68887173,85.044,85.004,3.93733117]
[1772828206845,9.68887173,85.043,85.004,3.93733117]
[1772828207039,9.68887173,85.042,85.004,3.93733117]
[1772828207240,9.68887173,85.041,85.004,3.93733117]
[1772828207445,9.68887173,85.04,85.004,3.93733117]
[1772828207744,9.68887173,85.039,85.004,3.93733117]
[1772828207944,9.68887173,85.038,85.004,3.93733117]
[1772828208144,9.68887173,85.037,85.004,3.93733117]
[1772828208339,9.68887173,85.036,85.004,3.93733117]
[1772828208540,3.96621749,85.046,85.006,10.587]
[1772828208737,9.69302529,85.045,85.006,10.587]
[1772828208941,9.69302529,85.044,85.004,3.93733117]
[1772828209142,13.65924278,85.043,84.994,3.93733117]
[1772828209340,3.96621749,85.041,84.994,3.93733117]
[1772828209548,13.65924278,85.04,84.994,3.93733117]
[1772828209748,9.69302529,85.039,84.994,3.93733117]
[1772828209948,3.96621749,85.04,84.994,3.93733117]
[1772828209949,9.69302529,85.038,84.994,3.93733117]
[1772828210148,9.69302529,85.037,84.994,3.93733117]
[1772828210346,3.96621749,85.034,84.994,3.93733117]
[1772828210547,3.96621749,85.034,84.949,3.93733117]
[1772828210548,3.96621749,85.032,84.949,3.93733117]
[1772828210746,3.96621749,85.03,84.949,3.93733117]
[1772828210948,3.96621749,85.028,84.949,3.93733117]
[1772828211147,9.69302529,85.027,84.949,3.93733117]
[1772828211348,9.69302529,85.026,84.949,3.93733117]
[1772828211551,20.27802529,85.025,84.973,3.93733117]
[1772828211851,9.69302529,85.024,84.973,3.93733117]
[1772828212152,3.96621749,85.021,84.977,10.591]
[1772828212346,3.96621749,85.019,84.977,10.591]
[1772828212544,3.96621749,85.017,84.93,3.93733117]
[1772828212748,3.96621749,85.015,84.93,3.93733117]
[1772828213047,3.96621749,85.013,84.93,3.93733117]
[1772828213251,3.96621749,85.011,84.93,3.93733117]
[1772828213452,3.96621749,85.009,84.93,3.93733117]
[1772828213752,3.96621749,85.007,84.958,10.593]
[1772828213952,10.587,85.01,84.959,3.93733117]
[1772828213953,3.96621749,85.005,84.959,3.93733117]
[1772828214151,9.69302529,85.004,84.959,3.93733117]
[1772828214352,3.96621749,85.022,84.971,14.52933117]
[1772828214553,3.96621749,85.02,84.971,3.93733117]
[1772828214847,3.96621749,85.018,84.971,3.93733117]
[1772828215254,3.96621749,85.031,84.971,3.93733117]
[1772828215449,9.67060535,85.03,84.971,3.93733117]
[1772828215650,9.67060535,85.029,84.971,3.93733117]
[1772828215851,3.96621749,85.031,84.971,3.93733117]
[1772828215852,9.67060535,85.028,84.971,3.93733117]
[1772828216050,9.67060535,85.027,84.971,3.93733117]
[1772828216250,9.67060535,85.026,84.971,3.93733117]
[1772828216451,9.67060535,85.025,84.971,3.93733117]
[1772828216648,9.67060535,85.024,84.971,3.93733117]
[1772828216950,9.67060535,85.023,84.971,3.93733117]
[1772828217148,9.67060535,85.022,84.971,3.93733117]
[1772828217450,9.67060535,85.021,84.971,3.93733117]
[1772828217652,9.67060535,85.02,84.971,3.93733117]
[1772828217850,9.67060535,85.019,84.971,3.93733117]
[1772828218051,9.67060535,85.018,84.971,3.93733117]
[1772828218251,9.67060535,85.017,84.971,3.93733117]
[1772828218451,9.67060535,85.016,84.971,3.93733117]
[1772828218650,9.67060535,85.015,84.971,3.93733117]
[1772828218852,9.67060535,85.014,84.972,3.85968077]
[1772828219154,10.586,85.022,84.972,3.85968077]
[1772828219453,13.50679095,85.021,84.974,14.45068077]
[1772828219652,9.67041435,85.02,84.974,14.45068077]
[1772828219853,9.67041435,85.019,84.974,14.45068077]
[1772828220055,3.8363766,85.021,84.974,14.45068077]
[1772828220255,9.67202907,85.02,84.974,14.45068077]
[1772828220450,9.67202907,85.019,84.974,14.45068077]
[1772828220656,3.8363766,85.021,84.979,3.85968077]
[1772828221352,3.8363766,85.021,84.982,3.85968077]
[1772828222449,3.8363766,85.021,84.99,10.589]
[1772828222659,3.94156912,85.043,84.991,3.68041388]
[1772828222851,9.67871187,85.042,84.991,3.68041388]
[1772828223050,9.67871187,85.041,84.991,3.68041388]
[1772828223251,9.67871187,85.04,84.991,3.68041388]
[1772828223554,309.8154851,85.044,85.004,3.68041388]
[1772828223754,9.679325,85.043,85.004,3.68041388]
[1772828224053,309.8154851,85.044,85.004,3.68041388]
[1772828224350,9.6794191,85.043,85.004,3.68041388]
[1772828224544,313.75705422,85.044,85.004,3.68041388]
[1772828224746,3.94156912,85.042,85.004,3.68041388]
[1772828226456,3.94156912,85.042,84.991,3.68041388]
[1772828226957,9.68303829,85.041,84.991,3.68041388]
[1772828227158,3.94156912,85.042,84.991,3.68041388]
[1772828227656,309.8154851,85.044,85.001,3.68041388]
[1772828227852,3.94156912,85.055,85.001,3.68041388]
[1772828228152,9.68413754,85.054,85.001,3.68041388]
[1772828228357,9.68413754,85.053,85.001,3.68041388]
[1772828228659,3.94156912,85.055,85.001,3.68041388]
[1772828228857,9.68634231,85.054,85.017,10.586]
[1772828229054,3.94156912,85.052,85.001,3.68041388]
[1772828229253,3.94156912,85.05,85.001,3.68041388]
[1772828229559,9.68634231,85.049,85.001,3.68041388]
[1772828229856,3.94156912,85.064,85.01,3.68041388]
[1772828230047,10.85437314,85.071,85.01,3.68041388]
[1772828230048,3.94156912,85.062,85.01,3.68041388]
[1772828230248,3.94156912,85.06,85.01,3.68041388]
[1772828230458,3.94156912,85.058,85.01,3.68041388]
[1772828230654,3.94156912,85.056,85.01,3.68041388]
[1772828230855,3.94156912,85.054,85.01,3.68041388]
[1772828231050,9.6862606,85.053,85.01,3.68041388]
[1772828231248,9.6862606,85.052,85.011,10.587]
[1772828231451,9.6862606,85.051,85.011,10.587]
[1772828231654,10.58,85.065,85.011,10.587]
[1772828231856,10.85437314,85.074,85.023,3.68041388]
[1772828232060,10.85437314,85.075,85.023,3.68041388]
[1772828232457,10.579,85.073,85.023,3.68041388]
[1772828232652,10.85437314,85.074,85.01,3.68041388]
[1772828232954,10.85437314,85.07,85.01,3.68041388]
[1772828233360,10.85437314,85.071,85.011,3.68041388]
[1772828233761,3.94156912,85.07,85.011,3.68041388]
[1772828234359,3.94156912,85.07,85.026,10.585]
[1772828234561,3.94156912,85.07,85.011,3.68041388]
[1772828234957,3.94156912,85.07,85.02,3.68041388]
[1772828235261,10.85437314,85.079,85.02,3.68041388]
[1772828236564,3.94156912,85.078,84.982,3.68041388]
[1772828236764,3.94156912,85.075,84.982,3.68041388]
[1772828237262,3.94156912,85.073,85.017,3.68041388]
[1772828237854,3.94156912,85.066,85.017,3.68041388]
[1772828238358,3.94156912,85.064,84.959,3.68041388]
[1772828238562,3.94156912,85.062,84.959,3.68041388]
[1772828238961,10.582,85.053,84.961,21.187]
[1772828239157,3.94156912,85.062,84.962,3.68041388]
[1772828239556,3.94156912,85.059,85.003,3.68041388]
[1772828240369,10.581,85.058,85.006,10.587]
[1772828240562,3.94156912,85.059,85.007,3.68041388]
[1772828241459,3.94156912,85.059,85.015,10.586]
[1772828241864,3.94156912,85.059,85.007,3.68041388]
[1772828242259,3.94156912,85.057,85.007,14.26741388]
[1772828242764,3.94156912,85.057,85.008,3.68041388]
[1772828243066,3.94156912,85.057,85.01,3.68041388]
[1772828243664,9.62418374,85.056,85.01,3.68041388]
[1772828243967,9.62418374,85.055,85.01,3.68041388]
[1772828244163,9.62418374,85.054,85.01,3.68041388]
[1772828244467,24.14775286,85.053,85.01,3.68041388]
[1772828244761,9.62418374,85.052,85.01,3.68041388]
[1772828244964,9.62418374,85.051,85.01,3.68041388]
[1772828245164,9.62418374,85.05,85.01,3.68041388]
[1772828245360,3.83852069,85.044,84.966,3.68041388]
[1772828245561,3.83852069,85.042,84.966,3.68041388]
[1772828245766,3.83852069,85.04,84.966,3.68041388]
[1772828245967,3.83852069,85.038,84.966,3.68041388]
[1772828246169,9.62421488,85.037,84.966,3.68041388]
[1772828246371,3.83852069,85.038,84.911,177.0]
[1772828246372,3.83852069,85.058,84.991,3.68041388]
[1772828246571,3.83852069,85.056,84.991,3.68041388]
[1772828246768,3.83852069,85.054,84.991,3.68041388]
[1772828247065,14.47616485,85.05,85.001,3.68041388]
[1772828247269,13.5190345,85.049,85.001,3.68041388]
[1772828247466,3.89416485,85.047,84.963,3.68041388]
[1772828247766,3.89416485,85.018,84.963,3.68041388]
[1772828247970,3.89416485,85.016,84.963,3.68041388]
[1772828248172,3.89416485,85.016,84.957,10.594]
[1772828248173,3.89416485,85.014,84.965,3.68041388]
[1772828248363,9.62486965,85.013,84.965,3.68041388]
[1772828248568,3.89416485,85.014,84.965,3.68041388]
[1772828248873,9.61928216,85.013,84.965,3.68041388]
[1772828249072,9.61928216,85.012,84.965,3.68041388]
[1772828249270,9.61928216,85.011,84.967,3.68041388]
[1772828249474,3.94156912,85.029,84.967,3.68041388]
[1772828250571,3.94156912,85.029,84.98,3.68041388]
[1772828251077,3.94156912,85.043,84.98,3.68041388]
[1772828252877,3.94156912,85.043,84.994,3.66858692]
[1772828253179,3.91653575,85.041,84.951,3.66858692]
[1772828253476,3.91653575,85.023,84.966,3.66858692]
[1772828254277,3.91653575,85.023,84.969,3.66858692]
[1772828254881,3.91653575,85.021,84.971,10.592]
[1772828255376,3.91653575,85.017,84.969,3.66858692]
[1772828256579,3.91653575,85.032,84.97,3.66858692]
[1772828256775,3.91653575,85.03,84.97,3.66858692]
[1772828257384,3.91653575,85.03,84.977,3.66858692]
[1772828257885,3.91653575,85.03,84.982,3.66858692]
[1772828258782,13.53085722,85.029,84.982,3.66858692]
[1772828258981,3.91653575,85.029,84.982,3.66858692]
[1772828259383,9.61879152,85.028,84.982,3.66858692]
[1772828259582,3.91653575,85.029,84.982,3.66858692]
[1772828259779,3.91653575,85.025,84.982,3.66858692]
[1772828259979,3.91653575,85.023,84.929,3.66858692]
[1772828260179,3.91653575,85.021,84.966,14.26058692]
[1772828260490,3.91653575,85.017,84.929,3.66858692]
[1772828260789,21.164,85.053,84.928,21.195]
[1772828260790,3.91653575,85.015,84.965,10.593]
[1772828261390,3.91653575,85.015,84.965,3.66858692]
[1772828262692,3.91653575,85.015,84.952,3.66858692]
[1772828262989,10.85437314,85.036,84.903,2.04782375]
[1772828262990,3.91653575,85.013,84.91,3.66858692]
[1772828263187,3.91653575,85.011,84.91,3.66858692]
[1772828263382,3.91653575,85.009,84.91,3.66858692]
[1772828263586,10.85437314,85.028,84.91,3.66858692]
[1772828263587,3.91653575,85.007,84.91,3.66858692]
[1772828263782,316.69952573,85.039,84.945,10.595]
[1772828263783,3.91653575,84.998,84.945,10.595]
[1772828265193,3.91653575,84.995,84.926,3.66858692]
[1772828265492,21.17,85.028,84.926,3.66858692]
[1772828265493,3.91653575,84.993,84.926,3.66858692]
[1772828265693,3.91653575,84.991,84.926,3.66858692]
[1772828265896,3.91653575,84.989,84.926,3.66858692]
[1772828266091,3.91653575,84.987,84.938,10.596]
[1772828266491,3.91653575,85.015,84.926,3.66858692]
[1772828266694,3.91653575,85.009,84.954,3.66858692]
[1772828266894,3.91653575,85.007,84.954,3.66858692]
[1772828268795,3.91653575,85.007,84.965,10.593]
[1772828269493,3.91653575,85.025,84.974,10.591]
[1772828270498,3.91653575,85.023,84.967,3.66858692]
[1772828270695,3.91653575,85.021,84.967,3.66858692]
[1772828271796,3.91653575,85.014,84.967,3.66858692]
[1772828272698,3.91653575,85.012,84.967,3.66858692]
[1772828272997,3.91653575,85.012,84.953,3.66858692]
[1772828273193,3.91653575,85.012,84.966,3.66858692]
[1772828273397,3.91653575,85.025,84.966,3.66858692]
[1772828273893,3.91653575,85.021,84.968,10.592]
[1772828274099,3.91653575,85.021,84.966,3.66858692]
[1772828274297,3.91653575,85.037,84.966,3.66858692]
[1772828274598,3.91653575,85.035,84.966,3.66858692]
[1772828275900,3.91653575,85.035,84.989,10.59]
[1772828276402,3.70187178,85.018,84.965,3.71408489]
[1772828277901,3.70187178,85.018,84.972,10.592]
[1772828278402,3.70187178,85.014,84.952,3.71408489]
[1772828278600,316.69952573,85.039,84.952,3.71408489]
[1772828278601,3.70187178,85.012,84.952,3.71408489]
[1772828280003,3.70187178,85.008,84.956,3.71408489]
[1772828280902,3.70187178,85.008,84.972,10.592]
[1772828282396,3.94491558,85.023,84.972,10.592]
[1772828282602,3.94491558,85.023,84.973,3.66478137]
[1772828283506,3.94491558,85.038,84.973,3.66478137]
[1772828283703,9.60261734,85.037,84.996,10.589]
[1772828283904,9.60261734,85.036,84.988,3.66478137]
[1772828284208,3.94491558,85.034,84.988,3.66478137]
[1772828284407,3.94491558,85.032,84.973,3.66478137]
[1772828284601,3.94491558,85.03,84.973,3.66478137]
[1772828285403,3.94491558,85.028,84.973,3.66478137]
[1772828285811,3.94491558,85.028,84.979,10.591]
[1772828286202,3.94491558,85.044,84.98,3.66478137]
[1772828286407,3.94491558,85.04,84.984,3.66478137]
[1772828286713,3.94491558,85.038,84.984,3.66478137]
[1772828286899,3.94491558,85.032,84.984,3.66478137]
[1772828287105,3.94491558,85.03,84.97,3.66478137]
[1772828287408,3.94491558,85.028,84.97,3.66478137]
[1772828287612,3.94491558,85.026,84.97,3.66478137]
[1772828287913,3.94491558,85.024,84.97,3.66478137]
[1772828288112,3.94491558,85.022,84.979,10.591]
[1772828288308,9.60955992,85.021,84.979,10.591]
[1772828288505,3.94491558,85.019,84.97,3.66478137]
[1772828288905,9.61314319,85.018,84.97,3.66478137]
[1772828289101,3.94491558,85.019,84.97,3.66478137]
[1772828289305,28.9264594,85.081,84.97,3.66478137]
[1772828289306,3.81396373,85.017,84.97,3.66478137]
[1772828289506,9.61577024,85.016,84.97,3.66478137]
[1772828289807,3.81396373,85.014,84.956,3.66478137]
[1772828290013,3.81396373,85.012,84.956,3.66478137]
[1772828290213,3.81396373,85.01,84.956,3.66478137]
[1772828290507,3.81396373,85.008,84.956,3.66478137]
[1772828290708,3.81396373,85.006,84.956,3.66478137]
[1772828291010,9.61577024,85.005,84.956,3.66478137]
[1772828291210,9.61577024,85.004,84.956,3.66478137]
[1772828291508,3.77800895,85.002,84.94,3.66478137]
[1772828291706,3.77800895,85.0,84.94,3.66478137]
[1772828291913,3.77800895,84.998,84.94,3.66478137]
[1772828292113,3.77800895,84.996,84.94,3.66478137]
[1772828292308,9.62037543,84.995,84.94,3.66478137]
[1772828292504,9.62037543,84.994,84.94,3.66478137]
[1772828292709,3.77800895,84.996,84.94,3.66478137]
[1772828292921,3.77426887,84.994,84.95,10.594]
[1772828293319,3.77426887,84.994,84.94,3.66478137]
[1772828293613,3.77426887,84.992,84.94,3.66478137]
[1772828293818,3.77426887,84.99,84.94,3.66478137]
[1772828294109,3.77426887,84.987,84.94,3.66478137]
[1772828294308,3.77426887,84.985,84.94,3.66478137]
[1772828294509,3.77426887,84.985,84.941,10.596]
[1772828294705,3.77426887,84.985,84.942,3.66478137]
[1772828295811,9.61039047,84.984,84.942,3.66478137]
[1772828296007,3.7282145,84.982,84.942,3.66478137]
[1772828296211,3.7282145,84.982,84.928,3.66478137]
[1772828296811,3.7282145,84.982,84.936,10.596]
[1772828297208,3.7282145,84.982,84.928,3.66478137]
[1772828297813,3.7282145,84.982,84.945,10.595]
[1772828298014,3.7282145,84.982,84.928,3.66478137]
[1772828298611,3.7282145,84.982,84.938,10.596]
[1772828299415,3.72961896,84.999,84.944,3.66478137]
[1772828299719,10.588,85.0,84.944,3.66478137]
[1772828299720,3.72961896,84.997,84.944,3.66478137]
[1772828299911,3.72961896,84.995,84.944,3.66478137]
[1772828300116,3.72961896,84.993,84.944,3.66478137]
[1772828300316,3.72961896,84.991,84.944,3.66478137]
[1772828300513,3.72961896,84.991,84.93,3.66478137]
[1772828301319,3.71270361,85.004,84.93,3.66478137]
[1772828301519,3.71270361,85.002,84.93,3.66478137]
[1772828301821,3.71270361,85.0,84.93,3.66478137]
[1772828302114,3.71270361,85.0,84.952,3.66478137]
[1772828303123,13.35108813,84.999,84.952,3.66478137]
[1772828303324,3.74675236,84.999,84.952,3.66478137]
[1772828303724,3.74675236,84.999,84.962,10.593]
[1772828304327,3.74675236,84.999,84.955,10.594]
[1772828304527,3.74675236,84.998,84.955,10.594]
[1772828306726,3.74675236,84.998,84.961,10.593]
[1772828307727,3.77509394,84.996,84.927,3.66478137]
[1772828307927,3.77509394,84.994,84.927,3.66478137]
[1772828308228,3.77509394,84.992,84.927,3.66478137]
[1772828308421,3.77509394,84.983,84.941,10.596]
[1772828308628,3.77509394,84.981,84.927,3.66478137]
[1772828308830,13.37779367,84.98,84.927,3.66478137]
[1772828309122,3.77509394,84.98,84.927,3.66478137]
[1772828309823,3.83563879,84.967,84.926,197.96075275]
[1772828310025,3.83563879,84.965,84.926,197.96075275]
[1772828310622,3.83563879,84.963,84.926,197.96075275]
[1772828310822,3.83563879,84.961,84.926,197.96075275]
[1772828311022,3.83563879,84.961,84.899,3.66478137]
[1772828311023,3.88107123,84.949,84.899,3.66478137]
[1772828311228,3.88107123,84.947,84.899,3.66478137]
[1772828311429,3.88107123,84.945,84.899,3.66478137]
[1772828311825,3.87988457,84.944,84.886,3.6069798]
[1772828312227,3.87988457,84.944,84.89,10.602]
[1772828312830,3.87991356,84.942,84.886,3.6069798]
[1772828313424,3.90079728,84.939,84.889,10.602]
[1772828313629,3.90079728,84.939,84.886,3.6069798]
[1772828314438,3.90079728,84.957,84.903,3.6069798]
[1772828314627,21.66260883,84.996,84.903,3.6069798]
[1772828314628,3.90079728,84.955,84.903,3.6069798]
[1772828316832,3.90079728,84.955,84.905,3.6069798]
[1772828317728,3.90079728,84.955,84.915,10.599]
[1772828317935,3.85076129,84.966,84.916,3.6069798]
[1772828318432,3.85076129,84.963,84.916,3.6069798]
[1772828319033,3.85076129,84.963,84.919,3.6069798]
[1772828319234,3.87433622,84.989,84.919,3.6069798]
[1772828319533,3.87433622,84.987,84.919,3.6069798]
[1772828319731,3.87433622,84.976,84.919,3.6069798]
[1772828321534,3.87433622,84.976,84.927,10.597]
[1772828322431,3.87509704,84.972,84.919,3.6069798]
[1772828323336,3.87509704,84.972,84.883,21.206]
[1772828323535,3.87509704,84.972,84.893,3.6069798]
[1772828323732,10.592,84.967,84.912,10.599]
[1772828323934,3.84126164,84.966,84.913,3.6069798]
[1772828324931,11.82533798,84.987,84.913,3.6069798]
[1772828324932,3.84097244,84.981,84.913,3.6069798]
[1772828325133,3.84097244,84.979,84.913,3.6069798]
[1772828325331,9.55902868,84.978,84.913,3.6069798]
[1772828325534,3.84097244,84.979,84.913,3.6069798]
[1772828325735,9.56379862,84.978,84.913,3.6069798]
[1772828326038,3.84097244,84.979,84.932,10.597]
[1772828326338,3.84097244,84.978,84.935,3.6069798]
[1772828328041,3.85678439,84.976,84.93,10.597]
[1772828328240,3.85678439,84.974,84.922,3.6069798]
[1772828328541,3.85678439,84.974,84.893,3.6069798]
[1772828329236,3.85766662,84.972,84.893,3.6069798]
[1772828329437,3.85766662,84.965,84.915,10.599]
[1772828329637,3.85766662,84.965,84.909,3.6069798]
[1772828330835,3.85766662,84.965,84.925,10.598]
[1772828331434,3.85766662,84.965,84.917,10.598]
[1772828332736,3.85996315,84.955,84.909,3.6069798]
[1772828332941,3.85966981,84.953,84.909,3.6069798]
[1772828333134,3.85966981,84.951,84.909,3.6069798]
[1772828333843,3.85966981,84.951,84.91,10.599]
[1772828334336,3.85966981,84.951,84.91,3.6069798]
[1772828334540,3.85966981,84.97,84.91,3.6069798]
[1772828334744,3.85966981,84.968,84.91,3.6069798]
[1772828334943,3.85809589,84.966,84.91,3.6069798]
[1772828335236,13.45192258,84.965,84.91,3.6069798]
[1772828335442,9.59382669,84.964,84.91,3.6069798]
[1772828335740,9.59382669,84.963,84.921,10.598]
[1772828335942,9.59382669,84.962,84.921,10.598]
[1772828336137,9.59382669,84.961,84.921,10.598]
[1772828336341,9.59382669,84.96,84.921,10.598]
[1772828336643,9.59382669,84.959,84.921,10.598]
[1772828336941,9.59382669,84.958,84.921,10.598]
[1772828337241,9.59382669,84.957,84.921,10.598]
[1772828337542,9.59382669,84.956,84.921,10.598]
[1772828337742,3.85809589,84.965,84.921,10.598]
[1772828338040,9.60096656,84.964,84.921,10.598]
[1772828338242,9.60096656,84.963,84.921,10.598]
[1772828338543,9.60096656,84.962,84.926,10.597]
[1772828338744,9.60096656,84.961,84.926,10.597]
[1772828338942,9.60096656,84.96,84.926,10.597]
[1772828339242,9.60096656,84.959,84.926,10.597]
[1772828339443,9.60096656,84.958,84.926,10.597]
[1772828339641,9.60096656,84.957,84.926,10.597]
[1772828339937,3.85809589,84.965,84.926,10.597]
[1772828339938,9.60096656,84.956,84.926,10.597]
[1772828340244,9.60096656,84.955,84.926,10.597]
[1772828340544,3.83562973,84.978,84.929,3.77444428]
[1772828340744,13.44028958,84.977,84.929,3.77444428]
[1772828340944,3.8226404,84.974,84.929,3.77444428]
[1772828341140,3.8226404,84.972,84.893,3.77444428]
[1772828341346,3.8226404,84.97,84.893,3.77444428]
[1772828341543,3.8226404,84.968,84.893,3.77444428]
[1772828341845,3.8226404,84.966,84.893,3.77444428]
[1772828342045,3.64431179,84.964,84.893,3.77444428]
[1772828342246,3.64431179,84.962,84.893,3.77444428]
[1772828342546,3.64431179,84.96,84.893,3.77444428]
[1772828342844,9.60465985,84.959,84.916,10.599]
[1772828343043,9.60465985,84.958,84.916,10.599]
[1772828343346,9.60465985,84.957,84.916,14.41997963]
[1772828343645,3.64431179,84.96,84.916,14.41997963]
[1772828343845,9.60405777,84.959,84.916,14.41997963]
[1772828344046,9.60405777,84.958,84.916,14.41997963]